bitfinex/quotes_BTCUSD_20260311
["timestamp","ask_amount","ask_price","bid_price","bid_amount"]
[1773244604377,0.07031767,70313.0,70296.0,0.07033487]
[1773244604702,0.07110639,70318.0,70297.0,0.1956677]
[1773244604909,0.07031448,70318.0,70297.0,0.19487579]
[1773244605121,0.06952307,70318.0,70297.0,0.19487579]
[1773244605319,0.06952307,70318.0,70297.0,0.19408438]
[1773244605520,0.0687322,70318.0,70297.0,0.19329351]
[1773244605721,0.06794188,70318.0,70297.0,0.19329351]
[1773244606018,0.27510178,70318.0,70297.0,0.19250319]
[1773244606174,0.27510178,70318.0,70299.0,0.1964601]
[1773244606393,0.27431253,70318.0,70300.0,0.00148]
[1773244606623,0.27431253,70318.0,70300.0,0.00069075]
[1773244606825,0.20794968,70317.0,70300.0,0.00069075]
[1773244607026,0.20794968,70317.0,70301.0,0.00148]
[1773244607178,0.20716144,70317.0,70301.0,0.00069176]
[1773244607382,0.0655741,70318.0,70301.0,0.00069176]
[1773244607383,0.207162,70315.0,70301.0,0.00069176]
[1773244607578,0.207162,70315.0,70301.0,0.00148]
[1773244607821,0.20637483,70315.0,70301.0,0.00148]
[1773244608018,0.20637483,70315.0,70296.0,0.07112745]
[1773244608218,0.20794968,70313.0,70296.0,0.07260745]
[1773244608416,0.20794968,70313.0,70296.0,0.07182085]
[1773244608685,0.20794968,70311.0,70289.0,0.07113486]
[1773244608896,0.20716434,70311.0,70290.0,0.00148]
[1773244609093,0.20716434,70311.0,70291.0,0.00148]
[1773244609335,0.2063795,70311.0,70289.0,0.07113462]
[1773244609534,0.2063795,70311.0,70240.0,0.00142226]
[1773244609535,0.2063795,70311.0,70292.0,0.00069516]
[1773244609734,0.20559517,70311.0,70291.0,0.00069567]
[1773244609975,0.20481136,70311.0,70281.0,0.2134482]
[1773244610169,0.20481136,70311.0,70282.0,0.00148]
[1773244610361,0.20481136,70311.0,70284.0,0.21266503]
[1773244610362,0.2776695,70310.0,70284.0,0.21266503]
[1773244610563,0.07181106,70310.0,70284.0,0.21188246]
[1773244610795,0.20577389,70309.0,70284.0,0.21188246]
[1773244611067,0.14188924,70308.0,70284.0,0.21110048]
[1773244611247,0.20655587,70307.0,70283.0,0.07114095]
[1773244611463,0.205775,70307.0,70284.0,0.00069913]
[1773244611843,0.20499469,70307.0,70284.0,0.00069913]
[1773244612084,0.20499469,70307.0,70284.0,0.001]
[1773244612411,0.20655587,70305.0,70284.0,0.07036019]
[1773244612687,0.20655587,70305.0,70285.0,0.21266901]
[1773244612688,0.00070081,70304.0,70285.0,0.21266901]
[1773244612980,0.20655587,70302.0,70285.0,0.21189052]
[1773244613280,0.20577808,70302.0,70284.0,0.0705824]
[1773244613477,0.20500094,70302.0,70284.0,0.0705824]
[1773244613680,0.20500094,70302.0,70284.0,0.06880526]
[1773244613896,0.20422437,70302.0,70283.0,0.07262024]
[1773244614099,0.20422437,70302.0,70283.0,0.07184367]
[1773244614303,0.20344839,70302.0,70284.0,0.00148]
[1773244614502,0.20655587,70300.0,70285.0,0.07036353]
[1773244614707,0.20578103,70300.0,70285.0,0.07036353]
[1773244614904,0.20578103,70300.0,70285.0,0.06958869]
[1773244615127,0.20500673,70300.0,70285.0,0.06881439]
[1773244615274,0.20423289,70300.0,70284.0,0.07184592]
[1773244615480,0.20345953,70300.0,70284.0,0.07184592]
[1773244615704,0.20345953,70300.0,70284.0,0.07255256]
[1773244615904,0.20268661,70300.0,70284.0,0.07255256]
[1773244616125,0.20268661,70300.0,70284.0,0.07177964]
[1773244616421,0.07111455,70310.0,70285.0,0.2134482]
[1773244616919,0.20803587,70309.0,70285.0,0.21267615]
[1773244617121,0.20726434,70309.0,70285.0,0.21190462]
[1773244617421,0.20803587,70308.0,70285.0,0.21113362]
[1773244617641,0.20726535,70308.0,70285.0,0.21113362]
[1773244617848,0.00148,70307.0,70285.0,0.2103631]
[1773244618050,0.20655587,70306.0,70286.0,0.00148]
[1773244618347,0.20578631,70306.0,70286.0,0.00071044]
[1773244618541,0.20655587,70304.0,70287.0,0.00148]
[1773244619030,0.20578717,70304.0,70287.0,0.00148]
[1773244619248,0.20578717,70304.0,70287.0,0.0007113]
[1773244619471,0.20578717,70304.0,70276.0,0.071145]
[1773244619472,0.20655587,70299.0,70264.0,0.07116019]
[1773244619714,0.20578831,70299.0,70267.0,0.21268064]
[1773244619928,0.20502144,70299.0,70267.0,0.21268064]
[1773244620140,0.20502144,70299.0,70267.0,0.21191377]
[1773244620348,0.20502144,70299.0,70268.0,0.00071377]
[1773244620349,0.20425521,70299.0,70268.0,0.00071377]
[1773244620533,0.07112577,70298.0,70269.0,0.07115513]
[1773244620734,0.20803587,70297.0,70269.0,0.07038949]
[1773244620941,0.20727081,70297.0,70263.0,0.07116058]
[1773244621112,0.20727081,70297.0,70268.0,0.00071494]
[1773244621313,0.20727081,70297.0,70269.0,0.2134482]
[1773244621314,0.20502639,70297.0,70269.0,0.2134482]
[1773244621485,0.07036013,70298.0,70269.0,0.2134482]
[1773244621486,0.00148,70296.0,70269.0,0.21268378]
[1773244621691,0.07036013,70298.0,70269.0,0.21192004]
[1773244621886,0.20655587,70295.0,70268.0,0.00071494]
[1773244622286,0.20655587,70295.0,70264.0,0.2134482]
[1773244622511,0.07112982,70294.0,70270.0,0.07115411]
[1773244622793,0.20655587,70293.0,70270.0,0.07115411]
[1773244623233,0.07112982,70294.0,70270.0,0.07115411]
[1773244623234,0.20655587,70291.0,70270.0,0.07039099]
[1773244623537,0.20579332,70289.0,70271.0,0.00071745]
[1773244623688,0.20503122,70289.0,70271.0,0.00071745]
[1773244623888,0.20503122,70289.0,70270.0,0.00148]
[1773244624089,0.20426962,70289.0,70269.0,0.00148]
[1773244624517,0.07113691,70287.0,70271.0,0.0711531]
[1773244624731,0.15604,70309.0,70272.0,0.21268765]
[1773244624732,0.00148,70291.0,70272.0,0.21268765]
[1773244624949,0.00148,70293.0,70272.0,0.21268765]
[1773244625147,0.00148,70293.0,70272.0,0.21192771]
[1773244625388,0.20655587,70300.0,70272.0,0.21192771]
[1773244625389,0.00072062,70295.0,70272.0,0.21192771]
[1773244625592,0.20655587,70294.0,70272.0,0.21116833]
[1773244625765,0.20579699,70294.0,70272.0,0.21116833]
[1773244625970,0.00148,70303.0,70272.0,0.21040945]
[1773244626145,0.00924173,70300.0,70272.0,0.21040945]
[1773244626352,0.00924173,70300.0,70272.0,0.20965118]
[1773244626570,0.00924173,70300.0,70272.0,0.0711511]
[1773244626571,0.20655587,70297.0,70272.0,0.0711511]
[1773244626759,0.20655587,70297.0,70273.0,0.00072302]
[1773244626760,0.20579889,70297.0,70273.0,0.00072302]
[1773244626942,0.2050425,70297.0,70273.0,0.00072302]
[1773244627287,0.20428673,70297.0,70274.0,0.00148]
[1773244627486,0.20428673,70297.0,70269.0,0.001]
[1773244627487,0.20428673,70297.0,70268.0,0.07135589]
[1773244627643,0.20353157,70297.0,70268.0,0.07135589]
[1773244627991,0.20277698,70297.0,70269.0,0.00148]
[1773244628484,0.20202295,70297.0,70272.0,0.00024597]
[1773244628660,0.0711278,70296.0,70269.0,0.07263445]
[1773244628983,0.20728292,70295.0,70266.0,0.07263812]
[1773244629193,0.20728292,70295.0,70266.0,0.00148]
[1773244629347,0.20653053,70295.0,70267.0,0.00148]
[1773244629548,0.20577871,70295.0,70267.0,0.00148]
[1773244629755,0.00148,70294.0,70268.0,0.2134482]
[1773244629957,0.20655587,70293.0,70268.0,0.21269697]
[1773244630165,0.20580521,70293.0,70268.0,0.21269697]
[1773244630370,0.20580521,70293.0,70266.0,0.00148]
[1773244630568,0.20505507,70293.0,70266.0,0.00148]
[1773244630769,0.20580627,70291.0,70267.0,0.07115715]
[1773244630971,0.20580627,70291.0,70267.0,0.07040755]
[1773244631172,0.00148,70290.0,70267.0,0.07040755]
[1773244631408,0.20655587,70289.0,70266.0,0.07188786]
[1773244631619,0.00148,70288.0,70267.0,0.2134482]
[1773244631807,0.00073191,70288.0,70267.0,0.2134482]
[1773244632008,0.00073191,70288.0,70267.0,0.21270011]
[1773244632168,0.00148,70287.0,70267.0,0.2119525]
[1773244632369,0.20728874,70287.0,70267.0,0.21120537]
[1773244632614,0.20728874,70287.0,70266.0,0.00148]
[1773244632615,0.20654207,70287.0,70266.0,0.07263808]
[1773244632843,0.20655587,70285.0,70266.0,0.07189141]
[1773244633042,0.20580967,70285.0,70263.0,0.07116032]
[1773244633248,0.20506393,70285.0,70267.0,0.00148]
[1773244633423,0.07113792,70286.0,70267.0,0.21418246]
[1773244633641,0.0007347,70284.0,70267.0,0.21343716]
[1773244633967,0.07113792,70286.0,70266.0,0.00073513]
[1773244633968,0.20803587,70283.0,70266.0,0.00073513]
[1773244634239,0.20803587,70283.0,70267.0,0.00148]
[1773244634240,0.20729144,70283.0,70267.0,0.00148]
[1773244634454,0.00148,70282.0,70267.0,0.00148]
[1773244634660,0.00148,70282.0,70267.0,0.00073601]
[1773244634846,0.07039941,70281.0,70267.0,0.00073601]
[1773244635048,0.20655587,70280.0,70264.0,0.0713521]
[1773244635196,0.2058127,70280.0,70264.0,0.0713521]
[1773244635405,0.2058127,70280.0,70264.0,0.07060893]
[1773244635643,0.20506995,70280.0,70264.0,0.06986618]
[1773244635822,0.20432762,70280.0,70264.0,0.06986618]
[1773244636020,0.20432762,70280.0,70264.0,0.06912385]
[1773244636224,0.00148,70282.0,70265.0,0.21270629]
[1773244636441,0.20581441,70296.0,70265.0,0.21270629]
[1773244636647,0.20655587,70294.0,70265.0,0.21196483]
[1773244636859,0.20655587,70292.0,70266.0,0.0704174]
[1773244637035,0.14179649,70291.0,70266.0,0.0704174]
[1773244637236,0.14179649,70291.0,70261.0,0.20890925]
[1773244637237,0.1268535,70290.0,70261.0,0.00014491]
[1773244637435,0.1268535,70290.0,70261.0,0.00088542]
[1773244637436,0.20655587,70289.0,70261.0,0.00088542]
[1773244637668,0.20581697,70287.0,70260.0,0.0002]
[1773244637895,0.20655587,70285.0,70259.0,0.28555421]
[1773244638059,0.20581747,70285.0,70259.0,0.07136761]
[1773244638238,0.20507956,70285.0,70259.0,0.0002027]
[1773244638443,0.20507956,70285.0,70259.0,0.00148]
[1773244638674,0.20434215,70285.0,70256.0,0.0002]
[1773244638874,0.20581898,70283.0,70256.0,0.0002]
[1773244639085,0.20581898,70283.0,70253.0,0.00014311]
[1773244639288,0.20508268,70283.0,70253.0,0.07131442]
[1773244639467,0.20508268,70283.0,70253.0,0.07057812]
[1773244639665,0.20434698,70283.0,70252.0,0.071172]
[1773244639986,0.00148,70282.0,70251.0,0.07137333]
[1773244640288,0.21236265,70281.0,70252.0,0.10481664]
[1773244640492,0.00148,70280.0,70252.0,0.10408213]
[1773244640722,0.21236331,70279.0,70252.0,0.10408213]
[1773244640848,0.07114602,70278.0,70254.0,0.20481664]
[1773244641051,0.00148,70278.0,70254.0,0.20408342]
[1773244641252,0.00074738,70278.0,70254.0,0.2033508]
[1773244641471,0.21161716,70277.0,70254.0,0.20261879]
[1773244641664,0.21088575,70277.0,70255.0,0.00148]
[1773244641891,0.21088575,70277.0,70255.0,0.00074859]
[1773244642115,0.21015485,70277.0,70256.0,0.0007491]
[1773244642316,1.537e-05,70278.0,70256.0,0.0007491]
[1773244642641,0.001,70283.0,70257.0,0.20408624]
[1773244642843,0.07114197,70282.0,70259.0,0.20481664]
[1773244643042,0.0704126,70282.0,70259.0,0.20481664]
[1773244643196,0.0704126,70282.0,70259.0,0.20408727]
[1773244643397,0.06968374,70282.0,70259.0,0.20335841]
[1773244643599,0.06895537,70282.0,70259.0,0.20335841]
[1773244643797,0.06895537,70282.0,70259.0,0.20263004]
[1773244644024,0.06822752,70282.0,70259.0,0.20190219]
[1773244644221,0.06750015,70282.0,70259.0,0.20190219]
[1773244644424,0.06750015,70282.0,70259.0,0.20117482]
[1773244644623,0.06677326,70282.0,70259.0,0.20117482]
[1773244644972,0.06677326,70282.0,70261.0,0.20485633]
[1773244645102,0.00148,70292.0,70262.0,0.20409024]
[1773244645327,0.07112982,70294.0,70263.0,0.00148]
[1773244645328,0.00148,70291.0,70263.0,0.00148]
[1773244645570,0.00148,70291.0,70264.0,0.20481664]
[1773244645821,0.00075471,70291.0,70264.0,0.20409135]
[1773244646124,0.00148,70291.0,70264.0,0.20336666]
[1773244646426,0.07112982,70294.0,70264.0,0.20264259]
[1773244646549,0.07188631,70294.0,70264.0,0.20191908]
[1773244646760,0.21332977,70295.0,70264.0,0.20191908]
[1773244646960,0.14128147,70294.0,70266.0,0.20481664]
[1773244647171,0.0713259,70295.0,70266.0,0.20481664]
[1773244647172,0.0713259,70295.0,70266.0,0.20409444]
[1773244647421,0.07060427,70295.0,70266.0,0.20337281]
[1773244647693,0.06988321,70295.0,70266.0,0.20337281]
[1773244647872,0.06988321,70295.0,70266.0,0.20265175]
[1773244648058,0.06916273,70295.0,70266.0,0.20193127]
[1773244648218,0.06844278,70295.0,70266.0,0.20121132]
[1773244648420,0.07134736,70297.0,70271.0,0.20481664]
[1773244648645,0.07062795,70297.0,70273.0,0.20409723]
[1773244648859,0.07040787,70298.0,70273.0,0.20409723]
[1773244649064,0.07040787,70298.0,70275.0,0.20481664]
[1773244649293,0.07112481,70299.0,70275.0,0.20409822]
[1773244649784,0.07040687,70299.0,70275.0,0.20338028]
[1773244649950,0.06968941,70299.0,70275.0,0.20266282]
[1773244650143,0.21161716,70298.0,70268.0,0.20481664]
[1773244650343,0.21090089,70298.0,70265.0,0.07115886]
[1773244650544,0.21090089,70298.0,70266.0,0.07292157]
[1773244650771,0.12759299,70290.0,70266.0,1e-08]
[1773244650991,0.21309716,70289.0,70256.0,0.07116764]
[1773244651192,0.21090226,70287.0,70256.0,0.07116764]
[1773244651420,0.21090226,70287.0,70256.0,0.07045274]
[1773244651625,0.21161716,70285.0,70256.0,0.07045274]
[1773244651812,0.21161716,70285.0,70256.0,0.06973843]
[1773244651982,0.21090346,70285.0,70256.0,0.06902473]
[1773244652187,0.21090407,70283.0,70256.0,0.06902473]
[1773244652500,0.00148,70282.0,70256.0,0.06831164]
[1773244652662,0.21161716,70281.0,70256.0,0.06759909]
[1773244652866,0.00148,70280.0,70257.0,0.10253904]
[1773244653203,0.07043351,70279.0,70258.0,0.17368813]
[1773244653404,0.07114405,70280.0,70258.0,0.17297664]
[1773244653604,0.07191305,70280.0,70258.0,0.17297664]
[1773244653811,0.07043305,70280.0,70258.0,0.17226564]
[1773244653956,0.06972254,70280.0,70259.0,0.10252186]
[1773244654162,0.07262399,70281.0,70259.0,0.10181135]
[1773244654402,0.28275623,70285.0,70259.0,0.10181135]
[1773244654616,0.28275623,70285.0,70259.0,0.10110133]
[1773244654786,0.21161716,70284.0,70259.0,0.10039194]
[1773244654987,0.21090841,70284.0,70259.0,0.10039194]
[1773244655172,0.21161716,70282.0,70260.0,0.07193549]
[1773244655370,0.21090903,70282.0,70260.0,0.07193549]
[1773244655583,0.21090903,70282.0,70260.0,0.07122736]
[1773244655779,0.21020149,70282.0,70260.0,0.07051982]
[1773244656022,0.20949455,70282.0,70261.0,0.20485633]
[1773244656189,0.20949455,70282.0,70261.0,0.20414939]
[1773244656385,0.20878813,70282.0,70261.0,0.20485633]
[1773244656615,0.0002504,70295.0,70261.0,0.20414991]
[1773244656824,0.0002504,70295.0,70262.0,0.10445587]
[1773244656825,0.07042388,70294.0,70262.0,0.10445587]
[1773244657024,0.07042388,70294.0,70262.0,0.10374993]
[1773244657203,0.07042388,70294.0,70264.0,0.10361444]
[1773244657204,0.21161716,70293.0,70264.0,0.10361444]
[1773244657514,0.21239253,70293.0,70264.0,0.10290917]
[1773244657753,0.21239253,70293.0,70264.0,0.10220454]
[1773244658070,0.00022001,70287.0,70264.0,0.1015005]
[1773244658355,0.21120509,70293.0,70264.0,0.10079709]
[1773244658557,0.20902226,70293.0,70264.0,0.10079709]
[1773244658760,0.00148,70292.0,70264.0,0.10009426]
[1773244658959,0.00148,70292.0,70264.0,0.09939202]
[1773244658960,0.00077776,70292.0,70264.0,0.09939202]
[1773244659167,0.07113286,70291.0,70265.0,0.07115918]
[1773244659338,0.21161716,70290.0,70266.0,0.10171275]
[1773244659526,0.14199461,70289.0,70267.0,0.10319275]
[1773244659711,0.21161716,70288.0,70267.0,0.10249224]
[1773244659913,0.07159954,70295.0,70267.0,0.10249224]
[1773244660124,0.07134682,70297.0,70268.0,0.00148]
[1773244660329,0.07134682,70297.0,70269.0,0.10184782]
[1773244660538,0.07064748,70297.0,70269.0,0.10114848]
[1773244660787,0.06994872,70297.0,70269.0,0.10044972]
[1773244661012,0.20024515,70296.0,70268.0,0.00148]
[1773244661291,0.20024515,70294.0,70269.0,0.17216927]
[1773244661487,0.19954756,70294.0,70269.0,0.17216927]
[1773244661709,0.19954756,70294.0,70269.0,0.17147168]
[1773244661912,0.19885052,70294.0,70269.0,0.0697605]
[1773244662049,0.19815403,70294.0,70270.0,0.00148]
[1773244662252,0.19815403,70294.0,70270.0,0.00078351]
[1773244662461,0.19745808,70294.0,70271.0,0.00148]
[1773244662674,0.19676268,70294.0,70271.0,0.0007846]
[1773244663027,0.19606774,70294.0,70269.0,0.06906455]
[1773244663305,0.20024515,70292.0,70273.0,0.0704566]
[1773244663506,0.20024515,70290.0,70272.0,0.07115203]
[1773244663686,0.20024515,70290.0,70263.0,0.0711612]
[1773244663897,0.1995518,70290.0,70264.0,0.00148]
[1773244664098,0.1995518,70290.0,70265.0,0.00148]
[1773244664273,0.19885908,70290.0,70265.0,0.00030728]
[1773244664476,0.19885908,70290.0,70267.0,0.10687765]
[1773244664477,0.19816694,70290.0,70267.0,0.10687765]
[1773244664673,0.19816694,70290.0,70268.0,0.00148]
[1773244665000,0.19747532,70290.0,70268.0,0.00078838]
[1773244665181,0.07113488,70289.0,70270.0,0.07115411]
[1773244665384,0.20024515,70288.0,70259.0,0.07264469]
[1773244665594,0.20024515,70288.0,70249.0,0.10832906]
[1773244665595,0.19955459,70288.0,70258.0,0.07072572]
[1773244665795,0.19886458,70288.0,70257.0,0.07116721]
[1773244665996,0.19886458,70288.0,70256.0,0.0002]
[1773244666195,0.19817518,70288.0,70256.0,0.07284822]
[1773244666419,0.19817518,70288.0,70256.0,0.07215882]
[1773244666623,0.19748639,70288.0,70256.0,0.07047943]
[1773244666823,0.19679828,70288.0,70256.0,0.07047943]
[1773244667053,0.19679828,70288.0,70255.0,0.07264921]
[1773244667054,0.20024515,70279.0,70255.0,0.07264921]
[1773244667182,0.07114804,70276.0,70255.0,0.07196171]
[1773244667536,0.19955818,70275.0,70255.0,0.07127474]
[1773244667822,0.1988717,70275.0,70255.0,0.07058826]
[1773244668025,0.19818572,70275.0,70255.0,0.06990228]
[1773244668201,0.19750023,70275.0,70255.0,0.06990228]
[1773244668404,0.19750023,70275.0,70255.0,0.06921679]
[1773244668575,0.20024515,70275.0,70255.0,0.06853179]
[1773244668781,0.19956058,70273.0,70255.0,0.06853179]
[1773244669001,0.19956058,70273.0,70252.0,0.07117235]
[1773244669214,0.07115209,70272.0,70256.0,0.0002]
[1773244669401,0.20024515,70271.0,70253.0,0.07216697]
[1773244669634,0.1995614,70271.0,70254.0,0.00148]
[1773244669869,0.20619733,70276.0,70255.0,0.11721471]
[1773244669997,0.0711484,70276.0,70255.0,0.11653136]
[1773244670227,0.0719456,70276.0,70255.0,0.11653136]
[1773244670434,0.20619733,70275.0,70254.0,0.00148]
[1773244670639,0.00148,70274.0,70254.0,0.0007977]
[1773244670863,0.00148,70273.0,70255.0,0.11641139]
[1773244671035,0.00148,70273.0,70255.0,0.11572955]
[1773244671234,0.00079862,70273.0,70255.0,0.11572955]
[1773244671457,0.07195,70273.0,70256.0,0.07116829]
[1773244671677,0.07126906,70273.0,70256.0,0.07048735]
[1773244671852,0.07058854,70273.0,70256.0,0.07048735]
[1773244672052,0.07058854,70273.0,70256.0,0.06980683]
[1773244672252,0.07058854,70273.0,70256.0,0.06912674]
[1773244672253,0.06990845,70273.0,70256.0,0.06912674]
[1773244672447,0.06922879,70273.0,70256.0,0.06912674]
[1773244672677,0.06922879,70273.0,70256.0,0.06844708]
[1773244672678,0.20619733,70272.0,70256.0,0.06844708]
[1773244672883,0.2055181,70272.0,70256.0,0.06844708]
[1773244673060,0.2055181,70272.0,70256.0,0.06776785]
[1773244673268,0.20483928,70272.0,70256.0,0.06708903]
[1773244673468,0.20416088,70272.0,70256.0,0.06708903]
[1773244673649,0.20416088,70272.0,70256.0,0.06641063]
[1773244673987,0.2034829,70272.0,70256.0,0.06573265]
[1773244674184,0.20280533,70272.0,70256.0,0.06573265]
[1773244674346,0.20280533,70272.0,70256.0,0.06505508]
[1773244674545,0.20619733,70281.0,70257.0,0.11931645]
[1773244674769,0.20552059,70279.0,70257.0,0.11931645]
[1773244674942,0.20552059,70279.0,70257.0,0.11863971]
[1773244675143,0.00148,70278.0,70256.0,0.06437793]
[1773244675344,0.07114804,70276.0,70256.0,0.06437793]
[1773244675566,0.07114804,70277.0,70256.0,0.06437793]
[1773244675567,0.20619733,70275.0,70256.0,0.06470214]
[1773244675789,0.0704727,70277.0,70257.0,0.11852128]
[1773244676093,0.06979781,70277.0,70257.0,0.11784639]
[1773244676303,0.06912337,70277.0,70257.0,0.11784639]
[1773244676603,0.20619733,70276.0,70257.0,0.11717195]
[1773244676742,0.20552335,70276.0,70257.0,0.11649797]
[1773244676946,0.08195129,70280.0,70257.0,0.11649797]
[1773244677276,0.00865336,70280.0,70257.0,0.11582443]
[1773244677476,0.01848412,70300.0,70271.0,0.20952063]
[1773244677724,0.01803158,70300.0,70272.0,0.11639804]
[1773244677924,0.00022001,70303.0,70272.0,0.11639804]
[1773244678131,0.00022001,70303.0,70272.0,0.1157261]
[1773244678281,0.00024871,70304.0,70272.0,0.11505479]
[1773244678481,0.00013126,70305.0,70272.0,0.11505479]
[1773244678722,0.00013126,70305.0,70272.0,0.11438413]
[1773244678934,0.20619733,70306.0,70272.0,0.11438413]
[1773244679128,0.20619733,70303.0,70273.0,0.00148]
[1773244679388,0.20619733,70303.0,70274.0,0.00148]
[1773244679389,0.20552805,70303.0,70274.0,0.00148]
[1773244679698,0.20619733,70301.0,70275.0,0.07048036]
[1773244679928,0.20552919,70301.0,70276.0,0.00148]
[1773244680118,0.20552919,70301.0,70275.0,0.07048036]
[1773244680322,0.20552919,70301.0,70272.0,0.07315138]
[1773244680323,0.20486161,70301.0,70272.0,0.07315138]
[1773244680527,0.20486161,70301.0,70272.0,0.0724838]
[1773244680726,0.20419466,70301.0,70272.0,0.0724838]
[1773244680902,0.20352834,70301.0,70273.0,0.00148]
[1773244681090,0.20352834,70301.0,70273.0,0.00081368]
[1773244681298,0.20619733,70299.0,70268.0,0.07115614]
[1773244681505,0.20619733,70297.0,70267.0,0.07115701]
[1773244681702,0.20553279,70295.0,70272.0,0.002]
[1773244682110,0.20553279,70295.0,70272.0,0.001]
[1773244683267,0.20553279,70295.0,70272.0,0.00033546]
[1773244683467,0.20486873,70295.0,70269.0,0.0011514]
[1773244683648,0.20486873,70295.0,70263.0,0.07116119]
[1773244683649,0.20553382,70293.0,70265.0,0.00148]
[1773244683818,0.20553382,70293.0,70265.0,0.00081649]
[1773244684169,0.20487089,70293.0,70265.0,0.00015356]
[1773244684376,0.20420855,70293.0,70264.0,0.07065133]
[1773244684522,0.2035468,70293.0,70264.0,0.07065133]
[1773244684728,0.07112982,70294.0,70266.0,0.12064166]
[1773244684928,0.20619733,70292.0,70266.0,0.1199805]
[1773244685210,0.20553675,70292.0,70264.0,0.06998958]
[1773244685375,0.20553675,70292.0,70265.0,0.00148]
[1773244685593,0.20619733,70290.0,70265.0,0.00148]
[1773244685788,0.20540825,70290.0,70265.0,0.00148]
[1773244685966,0.20540825,70290.0,70265.0,0.00082066]
[1773244686175,0.20701858,70289.0,70265.0,0.00016191]
[1773244686382,0.00148,70288.0,70265.0,0.00016191]
[1773244686580,0.20619733,70287.0,70264.0,0.00148]
[1773244686782,0.20553975,70287.0,70264.0,0.00082242]
[1773244686965,0.20488273,70287.0,70264.0,0.00082242]
[1773244687171,0.20488273,70287.0,70264.0,0.0001654]
[1773244687396,0.20619733,70285.0,70264.0,0.00148]
[1773244687606,0.07113994,70284.0,70265.0,0.07050327]
[1773244687804,0.20554189,70283.0,70265.0,0.07050327]
[1773244688109,0.20636691,70283.0,70265.0,0.06984783]
[1773244688306,0.20636691,70283.0,70265.0,0.06919285]
[1773244688509,0.20571241,70283.0,70265.0,0.06919285]
[1773244688810,0.2050584,70283.0,70265.0,0.06853835]
[1773244689013,0.2050584,70283.0,70265.0,0.06788434]
[1773244689216,0.20440483,70283.0,70265.0,0.19462907]
[1773244689432,0.07113376,70291.0,70265.0,0.19462907]
[1773244689433,0.20554418,70295.0,70266.0,0.12805187]
[1773244689581,0.20600445,70294.0,70268.0,0.12805187]
[1773244689783,0.13422186,70293.0,70268.0,0.12805187]
[1773244689983,0.27667541,70294.0,70268.0,0.12739931]
[1773244690200,0.20619733,70293.0,70268.0,0.12674736]
[1773244690408,0.00148,70292.0,70268.0,0.12609603]
[1773244690628,0.00082928,70292.0,70268.0,0.12609603]
[1773244690823,0.20619733,70291.0,70268.0,0.12544531]
[1773244691029,0.20554721,70291.0,70268.0,0.12479519]
[1773244691224,0.20489767,70291.0,70268.0,0.12479519]
[1773244691422,0.20489767,70291.0,70268.0,0.12414565]
[1773244691588,0.07113387,70290.0,70270.0,0.12651573]
[1773244691787,1.4061395,70470.0,70272.0,0.12651573]
[1773244691788,0.07112727,70297.0,70272.0,0.12651573]
[1773244691988,0.07134578,70299.0,70272.0,0.12651573]
[1773244691989,0.00022001,70299.0,70272.0,0.12586716]
[1773244692299,0.01,70310.0,70272.0,0.12521915]
[1773244692300,0.07124198,70307.0,70272.0,0.12521915]
[1773244692488,0.0705946,70307.0,70274.0,0.12574891]
[1773244692724,0.06994787,70307.0,70274.0,0.12510153]
[1773244692929,0.06994787,70307.0,70274.0,0.1244548]
[1773244693166,0.27549911,70307.0,70274.0,0.12380871]
[1773244693486,0.20619733,70306.0,70274.0,0.12316328]
[1773244693622,0.27667055,70306.0,70276.0,0.12368761]
[1773244693826,0.27667055,70306.0,70276.0,0.12304275]
[1773244694048,0.20490816,70306.0,70276.0,0.12239844]
[1773244694310,0.20426441,70306.0,70276.0,0.12239844]
[1773244694498,0.20555413,70305.0,70276.0,0.12175469]
[1773244694701,0.20555413,70305.0,70276.0,0.12111149]
[1773244694876,0.20491147,70305.0,70276.0,0.12111149]
[1773244695197,0.20426936,70305.0,70276.0,0.12046883]
[1773244695420,0.20426936,70305.0,70276.0,0.11982672]
[1773244695616,0.07111822,70306.0,70277.0,0.07114703]
[1773244695617,0.0711197,70304.0,70277.0,0.07114703]
[1773244695818,0.07111822,70306.0,70278.0,0.12428672]
[1773244695819,0.20619733,70305.0,70278.0,0.12428672]
[1773244696023,0.20555625,70305.0,70278.0,0.12364564]
[1773244696170,0.20491567,70305.0,70278.0,0.12364564]
[1773244696375,0.20491567,70305.0,70278.0,0.12300506]
[1773244696582,0.00144,70304.0,70278.0,0.12236498]
[1773244696789,0.20555773,70303.0,70278.0,0.12236498]
[1773244696990,0.20555773,70303.0,70278.0,0.12172538]
[1773244697188,0.20555773,70303.0,70278.0,0.00148]
[1773244697189,0.20491861,70303.0,70278.0,0.00148]
[1773244697385,0.20427999,70303.0,70278.0,0.00084138]
[1773244697617,0.07112173,70302.0,70279.0,0.071145]
[1773244697847,0.07112173,70302.0,70280.0,0.12320273]
[1773244697848,0.20619733,70301.0,70280.0,0.12320273]
[1773244698046,0.2055597,70301.0,70280.0,0.1225651]
[1773244698296,0.00144,70302.0,70280.0,0.12192794]
[1773244698524,0.00080328,70302.0,70280.0,0.12192794]
[1773244698734,0.00080328,70302.0,70280.0,0.12129122]
[1773244699036,0.000167,70302.0,70280.0,0.12065494]
[1773244699241,0.00144,70303.0,70280.0,0.12065494]
[1773244699420,0.07065097,70304.0,70280.0,0.1200191]
[1773244699620,0.27765293,70304.0,70280.0,0.11938373]
[1773244699800,0.20975894,70303.0,70281.0,0.07114298]
[1773244700139,0.20912441,70303.0,70281.0,0.07050803]
[1773244700468,0.20912441,70303.0,70281.0,0.0698735]
[1773244700604,0.21039389,70304.0,70282.0,0.12091318]
[1773244700813,0.20976023,70304.0,70282.0,0.12027952]
[1773244701233,0.20912705,70304.0,70282.0,0.11964634]
[1773244701436,0.01,70310.0,70291.0,0.20342814]
[1773244701775,0.00936724,70310.0,70292.0,0.12164281]
[1773244701984,0.00873487,70310.0,70294.0,0.11953044]
[1773244702305,0.21849678,70310.0,70293.0,0.07113083]
[1773244702559,0.21786522,70310.0,70293.0,0.07049927]
[1773244702771,0.20976276,70309.0,70282.0,0.07114126]
[1773244702942,0.20976276,70309.0,70279.0,0.07114399]
[1773244703259,0.20913232,70309.0,70283.0,0.00084956]
[1773244703436,0.20850247,70309.0,70283.0,0.00021971]
[1773244703635,0.20976455,70307.0,70283.0,0.00021971]
[1773244703841,0.20976455,70307.0,70282.0,0.00148]
[1773244704162,0.20976553,70305.0,70282.0,0.07199306]
[1773244704460,0.20976553,70305.0,70282.0,0.0713647]
[1773244704758,0.20851014,70305.0,70282.0,0.07221678]
[1773244704926,0.20851014,70305.0,70282.0,0.07158931]
[1773244705126,0.20788311,70305.0,70282.0,0.07158931]
[1773244705314,0.20788311,70305.0,70282.0,0.07096228]
[1773244705520,0.2072565,70305.0,70282.0,0.07033567]
[1773244705969,0.0711197,70304.0,70282.0,0.00148]
[1773244706172,0.21039389,70303.0,70282.0,0.00085378]
[1773244706472,0.21039389,70301.0,70282.0,0.00022794]